Cogmind - Beta 13 @@@ ROGUE MODE // 2024.03.31 @ 18:18:07 Player: AndK Result: Destroyed by exploding Fusion Modulator Performance ------------- Evolutions (0) 0 Regions Visited (1) 200 Robots Destroyed (13) 65 Value Destroyed (334) 334 Prototype IDs (0) 0 Alien Tech Used (0) 0 Bonus (0) 0 TOTAL SCORE: 599 Bonus ------- None Cogmind --------- Core Integrity 0/250 Matter 225/300 Energy 100/100 System Corruption 1% Temperature Warm (131) Movement Treading (480) Ox4 Location -10/Materials Parts ------- > --- POWER (1) -------- (None) > --- PROPULSION (2) --- Light Treads > --- UTILITY (2) ------ Huge Storage Unit > --- WEAPON (2) ------- Light Assault Rifle > --- INVENTORY (25) --- Light Ion Engine Light Ion Engine Huge Storage Unit Signal Interpreter Light Armor Plating Medium Laser Medium Laser Beam Cannon Assault Rifle Light Cannon Peak State ------------ > --- POWER ------------ Light Ion Engine > --- PROPULSION ------- Wheel Wheel > --- UTILITY ---------- Heat Sink Medium Storage Unit > --- WEAPON ----------- Assault Rifle Light Assault Rifle > --- INVENTORY -------- Light Treads Medium Laser Medium Laser [Rating: 7] Favorites ----------- Power Light Ion Engine Engine Light Ion Engine Propulsion Light Treads Treads Light Treads Wheel Wheel Utility Medium Storage Unit Device Heat Sink Storage Medium Storage Unit Protection Light Armor Plating Weapon Light Assault Rifle Ballistic Gun Light Assault Rifle Ballistic Cannon Light Cannon Build | -11 -10 ------- Run | Yrd Mat Slots Evolved . | . . Power . | . . Propulsion . | . . Utility . | . . Weapon . | . . Parts Attached 15 | 6 9 Power 2 | 1 1 Engine 2 | 1 1 Core . | . . Reactor . | . . Propulsion 3 | 2 1 Treads 1 | . 1 Leg . | . . Wheel 2 | 2 . Hover . | . . Flight . | . . Utility 5 | 1 4 Device 1 | 1 . Storage 3 | . 3 Processor . | . . Hackware . | . . Protection 1 | . 1 Artifact . | . . Weapon 5 | 2 3 Energy Gun . | . . Energy Cannon . | . . Ballistic Gun 4 | 2 2 Ballistic Cannon 1 | . 1 Launcher . | . . Special Weapon . | . . Impact Weapon . | . . Slashing Weapon . | . . Piercing Weapon . | . . Special Melee Weapon . | . . Unidentified Prototypes . | . . Parts Lost 7 | . 7 Power 2 | . 2 Propulsion 2 | . 2 Utility 2 | . 2 Weapon 1 | . 1 Highest Loss Streak 3 | . 3 To Critical Strikes . | . . Average Slot Usage (%) 78 | . 78 Engine 13 | . 13 Treads 11 | . 11 Wheel 3 | . 3 Device 4 | . 4 Storage 13 | . 13 Protection 3 | . 3 Ballistic Gun 19 | . 19 Ballistic Cannon 8 | . 8 Naked Turns . | . . Heaviest Build 90 | 7 90 Greatest Support 20 | 20 20 Greatest Overweight (x) 4 | . 4 Average Overweight (x) . | . . Largest Inventory Capacity 25 | 5 25 Average Capacity 15 | 5 16 Most Carried 10 | 2 10 Average Carried 5 | . 6 Final Capacity 25 | 5 25 Final Carried 10 | . 10 Class Distribution -------------------- 100% | Mutant Dominant Class ---------------- Mutant | -10/Materials Resources | -11 -10 ----------- Run | Yrd Mat Matter Collected 462 | 278 184 Remotely . | . . Salvage Created 340 | 33 307 Parts 32 | 3 29 Haulers Intercepted . | . . Recyclers Shooed . | . . Parts Field Recycled . | . . Retrieved Matter . | . . Parts Self-Destructed . | . . Prevented . | . . Kills | -11 -10 ------- Run | Yrd Mat Combat Hostiles Destroyed 10 | 1 9 Guns 8 | 1 7 AOE 2 | . 2 Classes Destroyed 4 | 1 3 Worker 1 | . 1 Watcher 2 | . 2 Swarmer 3 | . 3 Grunt 7 | 1 6 Best Kill Streak 5 | 1 5 Combat Bots Only 3 | 1 3 Max Kills in Single Turn 2 | 1 2 Gunslinging 1 | . 1 Exploded 1 | . 1 Melee . | . . Uniques/NPCs Destroyed . | . . Combat | -11 -10 -------- Run | Yrd Mat Hostile Shots Fired 83 | 9 74 Missed 27 | 4 23 Damage Taken 968 | 51 917 Core 272 | . 272 Absorbed by Shields . | . . Core Remaining (%) 100 | 100 . Volleys Fired 52 | 7 45 Largest 2 | 2 2 Hottest 55 | 40 55 Shots Fired 103 | 14 89 Gun 93 | 14 79 Cannon 10 | . 10 Launcher . | . . Special . | . . Kinetic 103 | 14 89 Thermal . | . . Explosive . | . . Electromagnetic . | . . Robot Hit Streak 7 | 3 7 Robot Miss Streak 5 | 3 5 Penetration Max . | . . Secondary Targets 1 | . 1 Max Gunslinging Chain 1 | . 1 Shots Hit Robots 57 | 6 51 Core Hits 20 | 2 18 Critical Kills . | . . Critical Parts Destroyed . | . . Critical Strikes . | . . Melee Attacks . | . . Impact . | . . Slashing . | . . Piercing . | . . Sneak Attacks . | . . Combat Hostiles . | . . Follow-up Attacks . | . . Damage Inflicted 805 | 62 743 Guns 482 | 62 420 Cannons 113 | . 113 Explosions 202 | . 202 Melee . | . . Ramming 8 | . 8 Kinetic 595 | 62 533 Thermal . | . . Explosive 202 | . 202 Electromagnetic . | . . Impact . | . . Slashing . | . . Piercing . | . . Highest Corruption 1 | . 1 Average Corruption 1 | . 1 Corruption Purged . | . . Corruption Blocked . | . . Effects 15 | . 15 Message Errors 2 | . 2 Matter Fused 2 | . 2 Energy Discharges 2 | . 2 Data Loss (minor) 4 | . 4 Data Loss (major) 2 | . 2 Misfires 3 | . 3 Overload Shots . | . . Overflow Damage 55 | . 55 Projectiles . | . . Explosions 55 | . 55 Melee . | . . Knockbacks 2 | . 2 Impact . | . . Kinetic 2 | . 2 Secondary . | . . Self-Inflicted Damage 83 | . 83 Shots 1 | . 1 Rammed 1 | . 1 Targets Rammed 1 | . 1 Kicked . | . . Crushed . | . . Highest Temperature 110 | 12 110 Average Temperature 40 | 7 48 Received Heat Transfer 339 | 30 309 Siege Activations . | . . Robots Corrupted . | . . Combat Hostiles . | . . Parts Fried . | . . Impact Corruptions . | . . Robots Melted . | . . Combat Hostiles . | . . Parts Melted . | . . Heat Transferred . | . . Parts Sabotaged . | . . Parts Stolen . | . . Parts Stripped . | . . Power Chain Reactions . | . . Alert | -11 -10 ------- Run | Yrd Mat Peak Influence 235 | 20 235 Initial 13 | . 13 Average 47 | 12 52 Maximum Alert Level 1 | . 1 Low Security (%) 92 | 100 91 Level 1 7 | . 8 Level 2 . | . . Level 3 . | . . Level 4 . | . . Level 5 . | . . High Security . | . . Max Security . | . . Squads Dispatched 2 | . 2 Investigation 1 | . 1 Extermination . | . . Reinforcement 1 | . 1 Assault . | . . Garrison . | . . Intercept . | . . Searches Triggered . | . . Construction Impeded . | . . Haulers Reinforced . | . . Active Scanning Responses . | . . Cargo Convoy Interrupts . | . . Stealth | -11 -10 --------- Run | Yrd Mat Distress Signals 1 | . 1 Communications Jammed . | . . Distress Signals . | . . Times Spotted 17 | 1 16 Peak Tracking Total 3 | 1 3 Tactical Retreats 1 | . 1 Traps | -11 -10 ------- Run | Yrd Mat Traps Triggered . | . . Indirectly . | . . Trap Hack Attempts . | . . Triggered . | . . Disarmed 4 | . 4 Reprogrammed . | . . Reused . | . . Traps Extracted . | . . Installed . | . . Triggered . | . . Machines | -11 -10 ---------- Run | Yrd Mat Machines Disabled 2 | . 2 Max in Single Turn 1 | . 1 Machines Repaired . | . . Machines Dismantled . | . . Machines Sabotaged . | . . Overloaded Fab Kills . | . . Hacking | -11 -10 --------- Run | Yrd Mat Machines Accessed 5 | . 5 Terminals 4 | . 4 Fabricators . | . . Repair Stations . | . . Recycling Units 1 | . 1 Scanalyzers . | . . Garrison Access . | . . Total Hacks 16 | . 16 Successful 7 | . 7 Failed 9 | . 9 Catastrophic . | . . Database Lockouts . | . . Manual 1 | . 1 Terminals 11 | . 11 Fabricators . | . . Repair Stations . | . . Recycling Units 5 | . 5 Scanalyzers . | . . Garrison Access . | . . Terminal Hacks 5 | . 5 Alert Level 1 | . 1 Disarm Traps 2 | . 2 Surveillance Status 1 | . 1 Patrol Status 1 | . 1 Fabricator Hacks . | . . Repair Station Hacks . | . . Recycling Unit Hacks 2 | . 2 Report Inventory 2 | . 2 Scanalyzer . | . . Garrison Access Hacks . | . . Unauthorized Hacks . | . . Terminals . | . . Fabricators . | . . Repair Stations . | . . Recycling Units . | . . Scanalyzers . | . . Garrison Access . | . . Data Cores Recovered . | . . Used . | . . Hacking Detections 3 | . 3 Full Trace Events 3 | . 3 Feedback Events 1 | . 1 Corruption 1 | . 1 Feedback Blocked . | . . Robot Schematics Acquired . | . . Robots Built . | . . Authchips . | . . Time . | . . Total Robot Build Rating . | . . Part Schematics Acquired . | . . Parts Built . | . . Authchips . | . . Time . | . . Total Part Build Rating . | . . Parts Repaired . | . . Time . | . . Parts Recycled . | . . Recycled Matter . | . . Retrieved Matter . | . . Retrieved Components . | . . Parts Scanalyzed . | . . Part Schematics Acquired . | . . Parts Damaged . | . . Bothacking | -11 -10 ------------ Run | Yrd Mat Used RIF Installer . | . . Robots Hacked . | . . Non-combat . | . . Combat . | . . Robot Hacks Applied . | . . Relay Couplers Released . | . . Fabnet Peak Effective % . | . . Robots Rewired . | . . Allies Hacked . | . . Hacks Repelled . | . . Allies | -11 -10 -------- Run | Yrd Mat Total Allies . | . . Largest Group . | . . Highest-Rated Group . | . . Highest-Rated Ally . | . . Total Orders . | . . Ally Attacks . | . . Total Damage . | . . Kills . | . . Allies Corrupted . | . . Allies Melted . | . . Intel | -11 -10 ------- Run | Yrd Mat Robot Analysis Total . | . . Derelict Logs Recovered . | . . Drone Launches . | . . Drone Recoveries . | . . Exploration | -11 -10 ------------- Run | Yrd Mat Turns Passed 1722 | 189 1533 Spaces Moved 752 | 81 671 Core 26 | 18 8 Treads 434 | . 434 Legs . | . . Wheels 292 | 63 229 Hover . | . . Flight . | . . Fastest Speed 50 | 50 80 Average Speed 189 | 73 203 Slowest Speed 480 | 80 480 Overloaded Moves . | . . Propulsion Burnouts . | . . Robots Hopped . | . . Cave-ins Triggered . | . . Exploration Rate (%) 38 | 9 68 Regions Visited 1 Branch Regions . Pre-discovered Areas . | . . Known Exits Taken . | . . Unknown Exits Taken 1 | 1 . Scrap Searched . | . . Spaces Dug . | . . Terrain Destroyed 52 | . 52 Melee . | . . Projectile . | . . AOE 52 | . 52 Terrain Rammed . | . . Walls Destroyed . | . . Machines Disabled . | . . Actions | -11 -10 --------- Run | Yrd Mat Total 960 | 197 763 Wait 115 | 98 17 Move 751 | 80 671 Hop . | . . Pick Up 23 | 6 17 Fast Attach . | . . Attach 10 | 6 4 Detach . | . . Swap 5 | . 5 Drop 3 | . 3 Fire 52 | 7 45 Melee . | . . Ram . | . . Kick . | . . Crush 1 | . 1 Escape Stasis . | . . Rewire . | . . Trap . | . . Miscellaneous . | . . Route ------- -11/Scrapyard -10/Materials (discovered 2 exits: [*Mat x2]) History --------- Turn | Location | Event 2 | -11/Scrapyard | Met Revision 17 49 | -11/Scrapyard | Discovered new exit (range 8) 190 | -11/Scrapyard | Entered Materials 316 | -10/Materials | Build established: Mutant 679 | -10/Materials | Discovered new exit (range 14) 1584 | -10/Materials | Discovered new exit (range 16) 1723 | -10/Materials | Destroyed by exploding Fusion Modulator Last Messages --------------- EXIT=FOUND K-01 Serf cleans the Fusion Modulator. XFJL=>CFUFZHGAAJ ZYXN0 K-01 Serf cleans the Fusion Modulator. Acquired Signal Interpreter. K-01 Serf cleans the Fusion Modulator. G-47 Trooper knocked back. G-34 Mercenary knocked back. M-13 Machinist repairs G-47 Trooper. Lgt. Ion Engine destroyed. M-13 Machinist repairs Aluminum Leg. Critical hit (Burn: +37). Fusion Modulator explodes. G-34 Mercenary destroyed. Fusion Modulator explodes. Lgt. Assault Rifle destroyed. Lgt. Armor Plating destroyed. G-47 Trooper destroyed. M-13 Machinist destroyed. Fusion Modulator explodes. Map ----- +----------------------------------------------------+ | ###?????# # #???# # """"" | | ????????# # = #??## # """"" | | ?#####??# # #??#T " " # """"" | | ##"T"#### ###+### ##??## "Y" + """"" | | ###????# """ # """"" | | ##?????############+### """"" | | ################ # """"" | | "" """ """% == # ## # | | "" """ """ == # ## """#####+### | | "" """ """% [= % # " """"" ## """#???# #?? | | + """"""""" ## """#???# #?? | | %# """ """ ## #???# #?? | | # ## ##### #?? | | ####### ####### ######################## #?? | | #???# # # ############## #??# #?? | | #???# # # #### #?? | | ! ##### / # T #?? | | ! + # # #### #?? | | ! ##### ##??""# ####;#;;###### #??# #?? | | #???# #?????####;;;; ;;;;#?#######??# #?? | | #???# #?????##; ! ;##?????????## #?? | | #???# #?????# ; ; #??????????# #?? | | #???# #?????#;; ! ;##??????????+ #?? | | ###??##+####### ; ; #??????????### #?? | | ?????# ##; ; #????????????# #?? | | ?????# """ # ; @ ;#?????????????? #?? | | ?????# """ #;;;; ;#####?????????? #?? | | ?????# """ # #????????? #?? | | ?????# + < #????????? #?? | | ###### """ =# t #????????? ??? | | # """ ####+### #######+####?????????+??? | | """# """ #? ?# #???????????????????????? | | """# ##""" ?#a #???????????????????????? | | """###########""" # #???????????????????????? | | #??????????""" # #???????????????????????? | | """#?????????#""" # #???????????????????????? | | """#?????????? # #???????????????????????? | | """#?????????????### #???????????????????????? | | #???????????????# #???????????????????????? | | ######???????????????# #???????????????????????? | | ?????????????????????# #???????????????????????? | | ?????????????????????? #???????????????????????? | | ?????????????????????? #???????????????????????? | | ?????????????????????? ????????????????????????? | | ?????????????????????????????????????????????????? | | ?????????????????????????????????????????????????? | | ?????????????????????????????????????????????????? | | ?????????????????????????????????????????????????? | | ?????????????????????????????????????????????????? | | ?????????????????????????????????????????????????? | +----------------------------------------------------+ Best States ------------- Heat Dissipation 35 Energy Generation 10 Energy Capacity 125 Matter Stores 300 Matter Capacity 300 Sight Range 16 Terrain Scan Density 10 Armor Coverage 150 Evasion (%) 50 Recoil Reduction 1 Item Schematics ----------------- None Robot Schematics ------------------ None Fabricated ------------ Nothing Alien Tech Used ----------------- None Achievements -------------- None Challenges ------------ None Game ------ Seed VariableFusionThrower Manual? 0 Play Time 00:14:43 Cumulative 1.0 hours Start 2024.03.31 @ 18:05:08 End 2024.03.31 @ 18:18:07 Sessions 1 Manual Loads 0 Difficulty Rogue Special Mode None Game No. 2 Rogue 2 Adventurer 0 Explorer 0 Win Type - Total 0 Types 0/0/0/0/0/0/0/0/0 Lore% 0 Gallery% 3 Achievement% 3 Wizard Run 0 Options --------- Layout 1 ASCII 0 Keyboard 0 Movement Mouse Keybinds 0 Fullscreen 1 Font 32/SmallcapsGlow Map View 50x35 Zoom Use 0% Tactical HUD 0 Map Filters NONE Filters NONE Steam 1 RUN: 101fc19e-e9a8-4d07-854a-9c334cfa7ba9